fUSD/lending_fUSD_20250111
["ID","MTS","AMOUNT","RATE_DAILY","PERIOD"]
[348536525,1736608251604,-1163.13,0.00011499,2]
[348536526,1736608251615,-2751.0,0.00011507,2]
[348536527,1736608251625,-500.0,0.00011529,2]
[348536528,1736608251634,-500.0,0.00011529,2]
[348536529,1736608251644,-500.0,0.00011529,2]
[348536530,1736608251654,-500.0,0.00011529,2]
[348536531,1736608251664,-647.59,0.00011529,2]
[348536532,1736608251674,-500.0,0.00011529,2]
[348536533,1736608251684,-500.0,0.00011529,2]
[348536534,1736608251694,-653.02,0.00011529,2]
[348536535,1736608251704,-500.0,0.00011529,2]
[348536536,1736608251713,-609.3,0.00011529,2]
[348536537,1736608251723,-500.0,0.00011529,2]
[348536538,1736608251732,-2239.21,0.00011529,2]
[348536539,1736608251741,-612.51,0.00011529,2]
[348536540,1736608251751,-500.0,0.00011529,2]
[348536541,1736608251761,-433.64753164,0.00011529,2]
[348536542,1736608251770,-715.75,0.00011529,2]
[348536543,1736608251779,-500.0,0.00011529,2]
[348536544,1736608251789,-566.75,0.00011529,2]
[348536545,1736608251798,-1506.62,0.00011529,2]
[348536546,1736608251808,-860.06,0.00011529,2]
[348536547,1736608251818,-1044.66,0.00011529,2]
[348536548,1736608251828,-1646.73,0.00011529,2]
[348536549,1736608251840,-532.45,0.00011529,2]
[348536550,1736608251850,-750.25,0.00011529,2]
[348536551,1736608251860,-1078.06,0.00011529,2]
[348536552,1736608251870,-600.58,0.00011529,2]
[348536553,1736608251879,-556.05,0.00011529,2]
[348536554,1736608251889,-907.77,0.00011529,2]
[348536555,1736608251898,-590.19,0.00011529,2]
[348536556,1736608251908,-647.9,0.00011529,2]
[348536557,1736608251918,-1472.22,0.00011529,2]
[348536558,1736608251928,-500.0,0.00011529,2]
[348536559,1736608251938,-689.66,0.00011529,2]
[348536560,1736608251949,-578.29,0.00011529,2]
[348536561,1736608251959,-739.05,0.00011529,2]
[348536562,1736608251969,-500.0,0.00011529,2]
[348536563,1736608251979,-843.07,0.00011529,2]
[348536564,1736608251989,-543.83295,0.00011529,2]
[348536565,1736608252000,-500.0,0.00011529,2]
[348536566,1736608252174,-500.0,0.00011529,2]
[348536567,1736608252183,-1160.78,0.00011529,2]
[348536568,1736608252192,-696.74,0.00011529,2]
[348536569,1736608252202,-631.2,0.00011529,2]
[348536570,1736608252211,-575.137924,0.00011529,2]
[348536571,1736608252219,-500.0,0.00011529,2]
[348536572,1736608252229,-572.06,0.00011529,2]
[348536573,1736608252238,-500.0,0.0001153,2]
[348536574,1736608252247,-500.0,0.0001153,2]
[348536575,1736608252256,-500.0,0.0001153,2]
[348536576,1736608252265,-500.0,0.0001153,2]
[348536577,1736608252274,-500.0,0.0001153,2]
[348536578,1736608252283,-500.0,0.00011531,2]
[348536579,1736608252292,-500.0,0.00011531,2]
[348536580,1736608252301,-500.0,0.00011531,2]
[348536581,1736608252310,-500.0,0.00011531,2]
[348536582,1736608252320,-500.0,0.00011531,2]
[348536583,1736608252329,-500.0,0.00011531,2]
[348536584,1736608252338,-500.0,0.00011531,2]
[348536585,1736608252347,-500.0,0.00011531,2]
[348536586,1736608252356,-500.0,0.00011531,2]
[348536587,1736608252366,-500.0,0.00011531,2]
[348536588,1736608252378,-500.0,0.00011531,2]
[348536589,1736608252388,-500.0,0.00011531,2]
[348536590,1736608252397,-500.0,0.00011531,2]
[348536591,1736608252407,-500.0,0.00011531,2]
[348536592,1736608252416,-417.31147816,0.00011531,2]
[348536593,1736608252426,-500.0,0.00011531,2]
[348536594,1736608252435,-500.0,0.00011531,2]
[348536595,1736608252445,-500.0,0.00011531,2]
[348536596,1736608252455,-500.0,0.00011531,2]
[348536597,1736608252465,-563.93,0.00011531,2]
[348536598,1736608252474,-500.0,0.00011531,2]
[348536599,1736608252484,-500.0,0.00011531,2]
[348536600,1736608252493,-631.12,0.00011531,2]
[348536601,1736608252502,-500.0,0.00011531,2]
[348536602,1736608252512,-500.0,0.00011531,2]
[348536603,1736608252521,-500.0,0.00011531,2]
[348536604,1736608252530,-500.0,0.00011534,2]
[348536605,1736608252539,-920.43,0.00011534,2]
[348536606,1736608252549,-1163.13,0.00011642,2]
[348536607,1736608252559,-551.41,0.00011643,2]
[348536608,1736608252569,-500.0,0.00011643,2]
[348536609,1736608252578,-844.04,0.00011643,2]
[348536610,1736608252588,-500.0,0.00011643,2]
[348536611,1736608252598,-1249.34,0.00011643,2]
[348536612,1736608252609,-693.31,0.00011643,2]
[348536613,1736608252619,-1109.44,0.00011643,2]
[348536614,1736608252628,-515.87,0.00011643,2]
[348536615,1736608252637,-551.85,0.00011643,2]
[348536616,1736608252647,-500.0,0.00011643,2]
[348536617,1736608252656,-500.0,0.00011643,2]
[348536618,1736608252665,-500.0,0.00011643,2]
[348536619,1736608252674,-500.0,0.00011643,2]
[348536620,1736608252683,-500.0,0.00011643,2]
[348536621,1736608252693,-500.0,0.00011643,2]
[348536622,1736608252702,-607.63,0.00011643,2]
[348536623,1736608252711,-500.0,0.00011643,2]
[348536624,1736608252720,-568.09,0.00011643,2]
[348536625,1736608252730,-500.0,0.00011643,2]
[348536626,1736608252740,-500.0,0.00011643,2]
[348536627,1736608252749,-961.31,0.00011643,2]
[348536628,1736608252758,-3800.68,0.00011643,2]
[348536629,1736608252767,-500.0,0.00011643,2]
[348536630,1736608252777,-205.993,0.0001168,2]
[348536631,1736608252786,-772.24,0.00011746,2]
[348536632,1736608252796,-500.0,0.00011803,2]
[348536633,1736608252805,-500.0,0.00011803,2]
[348536634,1736608252815,-500.0,0.00011803,2]
[348536635,1736608252824,-500.0,0.00011803,2]
[348536636,1736608252833,-647.59,0.00011803,2]
[348536637,1736608252844,-500.0,0.00011803,2]
[348536638,1736608252854,-500.0,0.00011803,2]
[348536639,1736608252863,-653.02,0.00011803,2]
[348536640,1736608252872,-500.0,0.00011803,2]
[348536641,1736608252881,-609.3,0.00011803,2]
[348536642,1736608252890,-500.0,0.00011803,2]
[348536643,1736608252899,-2239.21,0.00011803,2]
[348536644,1736608252909,-612.51,0.00011803,2]
[348536645,1736608252919,-500.0,0.00011803,2]
[348536646,1736608252928,-715.75,0.00011803,2]
[348536647,1736608252938,-500.0,0.00011803,2]
[348536648,1736608252948,-566.75,0.00011803,2]
[348536649,1736608252957,-1506.62,0.00011803,2]
[348536650,1736608252966,-860.06,0.00011803,2]
[348536651,1736608252976,-1044.66,0.00011803,2]
[348536652,1736608252986,-1646.73,0.00011803,2]
[348536653,1736608252995,-532.45,0.00011803,2]
[348536654,1736608253004,-750.25,0.00011803,2]
[348536655,1736608253014,-1078.06,0.00011803,2]
[348536656,1736608253024,-600.58,0.00011803,2]
[348536657,1736608253033,-556.05,0.00011803,2]
[348536658,1736608253042,-907.77,0.00011803,2]
[348536659,1736608253052,-590.19,0.00011803,2]
[348536660,1736608253061,-647.9,0.00011803,2]
[348536661,1736608253071,-1472.22,0.00011803,2]
[348536662,1736608253080,-500.0,0.00011803,2]
[348536663,1736608253091,-689.66,0.00011803,2]
[348536664,1736608253100,-578.29,0.00011803,2]
[348536665,1736608253110,-739.05,0.00011803,2]
[348536666,1736608253119,-500.0,0.00011803,2]
[348536667,1736608253129,-843.07,0.00011803,2]
[348536668,1736608253138,-543.83295,0.00011803,2]
[348536669,1736608253147,-500.0,0.00011803,2]
[348536670,1736608253156,-500.0,0.00011803,2]
[348536671,1736608253166,-1160.78,0.00011803,2]
[348536672,1736608253175,-696.74,0.00011803,2]
[348536673,1736608253184,-631.2,0.00011803,2]
[348536674,1736608253193,-575.137924,0.00011803,2]
[348536675,1736608253202,-500.0,0.00011803,2]
[348536676,1736608253211,-572.06,0.00011803,2]
[348536677,1736608253220,-500.0,0.00011804,2]
[348536678,1736608253230,-366.35358236,0.00011804,2]
[348536679,1736608253239,-500.0,0.00011804,2]
[348536680,1736608253248,-500.0,0.00011804,2]
[348536681,1736608253259,-206.62283428,0.00011804,2]
[348536682,1736608253268,-500.0,0.00011805,2]
[348536683,1736608253279,-500.0,0.00011805,2]
[348536684,1736608253289,-500.0,0.00011805,2]
[348536685,1736608253299,-500.0,0.00011805,2]
[348536686,1736608253308,-316.49855679,0.00011805,2]
[348536687,1736608253317,-500.0,0.00011805,2]
[348536688,1736608253327,-500.0,0.00011805,2]
[348536689,1736608253336,-500.0,0.00011805,2]
[348536690,1736608253346,-500.0,0.00011805,2]
[348536691,1736608253355,-500.0,0.00011805,2]
[348536692,1736608253364,-500.0,0.00011805,2]
[348536693,1736608253377,-500.0,0.00011805,2]
[348536694,1736608253386,-500.0,0.00011805,2]
[348536695,1736608253395,-500.0,0.00011805,2]
[348536696,1736608253404,-500.0,0.00011805,2]
[348536697,1736608253415,-500.0,0.00011805,2]
[348536698,1736608253424,-500.0,0.00011805,2]
[348536699,1736608253434,-500.0,0.00011805,2]
[348536700,1736608253444,-563.93,0.00011805,2]
[348536701,1736608253454,-500.0,0.00011805,2]
[348536702,1736608253463,-500.0,0.00011805,2]
[348536703,1736608253473,-631.12,0.00011805,2]
[348536704,1736608253482,-500.0,0.00011805,2]
[348536705,1736608253492,-500.0,0.00011805,2]
[348536706,1736608253501,-500.0,0.00011805,2]
[348536707,1736608253510,-500.0,0.00011808,2]
[348536708,1736608253519,-920.43,0.00011808,2]
[348536709,1736608253529,-1241.0,0.00011873,2]
[348536710,1736608253538,-186973.02159083,0.0001188,2]
[348536711,1736608253548,-551.41,0.00011917,2]
[348536712,1736608253558,-500.0,0.00011917,2]
[348536713,1736608253567,-844.04,0.00011917,2]
[348536714,1736608253577,-500.0,0.00011917,2]
[348536715,1736608253586,-1249.34,0.00011917,2]
[348536716,1736608253596,-693.31,0.00011917,2]
[348536717,1736608253607,-1109.44,0.00011917,2]
[348536718,1736608253617,-515.87,0.00011917,2]
[348536719,1736608253627,-551.85,0.00011917,2]
[348536720,1736608253636,-500.0,0.00011917,2]
[348536721,1736608253646,-500.0,0.00011917,2]
[348536722,1736608253655,-500.0,0.00011917,2]
[348536723,1736608253665,-500.0,0.00011917,2]
[348536724,1736608253674,-500.0,0.00011917,2]
[348536725,1736608253683,-500.0,0.00011917,2]
[348536726,1736608253693,-607.63,0.00011917,2]
[348536727,1736608253703,-500.0,0.00011917,2]
[348536728,1736608253712,-568.09,0.00011917,2]
[348536729,1736608253722,-500.0,0.00011917,2]
[348536730,1736608253731,-500.0,0.00011917,2]
[348536731,1736608253741,-961.31,0.00011917,2]
[348536732,1736608253751,-3800.68,0.00011917,2]
[348536733,1736608253760,-500.0,0.00011917,2]
[348536734,1736608253769,-1794.935,0.00011946,2]
[348536735,1736608253778,-176.854,0.00011946,2]
[348536736,1736608253787,-429.82131162,0.00011995,2]
[348536737,1736608253797,-419.7902322,0.00012053,2]
[348536738,1736608253806,-200.0,0.00012055,2]
[348536739,1736608253815,-500.0,0.00012077,2]
[348536740,1736608253825,-500.0,0.00012077,2]
[348536741,1736608253834,-500.0,0.00012077,2]
[348536742,1736608253844,-500.0,0.00012077,2]
[348536743,1736608253853,-647.59,0.00012077,2]
[348536744,1736608253863,-500.0,0.00012077,2]
[348536745,1736608253872,-500.0,0.00012077,2]
[348536746,1736608253881,-653.02,0.00012077,2]
[348536747,1736608253890,-209.2640877,0.00012077,2]
[348536748,1736608253899,-609.3,0.00012077,2]
[348536749,1736608253908,-500.0,0.00012077,2]
[348536750,1736608253917,-2239.21,0.00012077,2]
[348536751,1736608253927,-612.51,0.00012077,2]
[348536752,1736608253936,-500.0,0.00012077,2]
[348536753,1736608253945,-715.75,0.00012077,2]
[348536754,1736608253955,-500.0,0.00012077,2]
[348536755,1736608253964,-566.75,0.00012077,2]
[348536756,1736608253973,-1506.62,0.00012077,2]
[348536757,1736608253983,-860.06,0.00012077,2]
[348536758,1736608253992,-1044.66,0.00012077,2]
[348536759,1736608254001,-1646.73,0.00012077,2]
[348536760,1736608254010,-532.45,0.00012077,2]
[348536761,1736608254019,-750.25,0.00012077,2]
[348536762,1736608254029,-1078.06,0.00012077,2]
[348536763,1736608254038,-600.58,0.00012077,2]
[348536764,1736608254047,-556.05,0.00012077,2]
[348536765,1736608254056,-907.77,0.00012077,2]
[348536766,1736608254065,-590.19,0.00012077,2]
[348536767,1736608254074,-647.9,0.00012077,2]
[348536768,1736608254083,-1472.22,0.00012077,2]
[348536769,1736608254093,-500.0,0.00012077,2]
[348536770,1736608254103,-689.66,0.00012077,2]
[348536771,1736608254112,-578.29,0.00012077,2]
[348536772,1736608254121,-739.05,0.00012077,2]
[348536773,1736608254130,-500.0,0.00012077,2]
[348536774,1736608254139,-843.07,0.00012077,2]
[348536775,1736608254149,-543.83295,0.00012077,2]
[348536776,1736608254157,-500.0,0.00012077,2]
[348536777,1736608254166,-500.0,0.00012077,2]
[348536778,1736608254175,-1160.78,0.00012077,2]
[348536779,1736608254184,-696.74,0.00012077,2]
[348536780,1736608254194,-631.2,0.00012077,2]
[348536781,1736608254203,-575.137924,0.00012077,2]
[348536782,1736608254213,-212.21507662,0.00012077,2]
[348536783,1736608254222,-572.06,0.00012077,2]
[348536784,1736608254231,-500.0,0.00012078,2]
[348536785,1736608254241,-500.0,0.00012078,2]
[348536786,1736608254249,-626.78990976,0.00012078,2]
[348536787,1736608254259,-285.98017654,0.00012079,2]
[348536788,1736608254268,-500.0,0.00012079,2]
[348536789,1736608254277,-500.0,0.00012079,2]
[348536790,1736608254286,-500.0,0.00012079,2]
[348536791,1736608254295,-500.0,0.00012079,2]
[348536792,1736608254305,-500.0,0.00012079,2]
[348536793,1736608254314,-500.0,0.00012079,2]
[348536794,1736608254323,-500.0,0.00012079,2]
[348536795,1736608254333,-500.0,0.00012079,2]
[348536796,1736608254343,-500.0,0.00012079,2]
[348536797,1736608254353,-500.0,0.00012079,2]
[348536798,1736608254362,-500.0,0.00012079,2]
[348536799,1736608254373,-500.0,0.00012079,2]
[348536800,1736608254382,-500.0,0.00012079,2]
[348536801,1736608254392,-458.44565834,0.00012079,2]
[348536802,1736608254401,-500.0,0.00012079,2]
[348536803,1736608254466,-500.0,0.00012079,2]
[348536804,1736608254476,-563.93,0.00012079,2]
[348536805,1736608254486,-500.0,0.00012079,2]
[348536806,1736608254495,-500.0,0.00012079,2]
[348536807,1736608254504,-631.12,0.00012079,2]
[348536808,1736608254513,-500.0,0.00012079,2]
[348536809,1736608254522,-500.0,0.00012079,2]
[348536810,1736608254531,-500.0,0.00012079,2]
[348536811,1736608254541,-500.0,0.00012082,2]
[348536812,1736608254550,-920.43,0.00012082,2]
[348536813,1736608254559,-500.0,0.00012096,2]
[348536814,1736608254568,-2000.0,0.00012096,2]
[348536815,1736608254577,-500.0,0.00012096,2]
[348536816,1736608254586,-200.0,0.00012096,2]
[348536817,1736608254596,-1163.13,0.00012099,2]
[348536818,1736608254605,-13050.5966767,0.0001218,2]
[348536819,1736608254617,-551.41,0.00012191,2]
[348536820,1736608254627,-500.0,0.00012191,2]
[348536821,1736608254636,-844.04,0.00012191,2]
[348536822,1736608254646,-500.0,0.00012191,2]
[348536823,1736608254655,-1249.34,0.00012191,2]
[348536824,1736608254664,-693.31,0.00012191,2]
[348536825,1736608254673,-1109.44,0.00012191,2]
[348536826,1736608254682,-515.87,0.00012191,2]
[348536827,1736608254691,-551.85,0.00012191,2]
[348536828,1736608254700,-500.0,0.00012191,2]
[348536829,1736608254709,-500.0,0.00012191,2]
[348536830,1736608254718,-500.0,0.00012191,2]
[348536831,1736608254727,-500.0,0.00012191,2]
[348536832,1736608254736,-500.0,0.00012191,2]
[348536833,1736608254745,-500.0,0.00012191,2]
[348536834,1736608254755,-607.63,0.00012191,2]
[348536835,1736608254764,-500.0,0.00012191,2]
[348536836,1736608254773,-568.09,0.00012191,2]
[348536837,1736608254782,-500.0,0.00012191,2]
[348536838,1736608254791,-500.0,0.00012191,2]
[348536839,1736608254800,-961.31,0.00012191,2]
[348536840,1736608254809,-3800.68,0.00012191,2]
[348536841,1736608254818,-500.0,0.00012191,2]
[348536842,1736608254827,-23347.22864302,0.000122,2]
[348536843,1736608254837,-3811.78013039,0.000122,2]
[348536844,1736608254846,-260.86664945,0.000122,2]
[348536845,1736608254855,-382.43,0.00012238,2]
[348536846,1736608254864,-1163.13,0.00012259,2]
[348536847,1736608254873,-1004.73726173,0.00012263,2]
[348536848,1736608254882,-22673.0,0.00012274,2]
[348536849,1736608254892,-2011.0,0.00012274,2]
[348536850,1736608254901,-801.0,0.00012274,2]
[348536851,1736608254910,-371.0279863,0.00012274,2]
[348536852,1736608254919,-150.0,0.00012274,2]
[348536853,1736608254929,-150.0,0.00012274,2]
[348536854,1736608254938,-150.0,0.00012274,2]
[348536855,1736608254948,-223.3717837,0.00012274,2]
[348536856,1736608254957,-150.0,0.00012274,2]
[348536857,1736608254967,-150.0,0.00012274,2]
[348536858,1736608254977,-150.0,0.00012274,2]
[348536859,1736608254986,-150.0,0.00012274,2]
[348536860,1736608254995,-371.0279863,0.00012286,2]
[348536861,1736608255005,-223.3717837,0.00012286,2]
[348536862,1736608255014,-1163.13,0.00012298,2]
[348536863,1736608255023,-371.0279863,0.00012299,2]
[348536864,1736608255032,-223.3717837,0.00012299,2]
[348536865,1736608255041,-886.2425,0.00012299,2]
[348536866,1736608255050,-500.0,0.00012299,2]
[348536867,1736608255059,-1163.13,0.00012299,2]
[348536868,1736608255068,-1163.13,0.00012299,2]
[348536869,1736608255078,-1163.13,0.00012299,2]
[348536870,1736608255087,-1163.13,0.00012299,2]
[348536871,1736608255096,-1163.13,0.00012299,2]
[348536872,1736608255105,-1163.13,0.00012299,2]
[348536873,1736608255114,-1163.13,0.00012299,2]
[348536874,1736608255123,-1163.17230576,0.00012299,2]
[348536875,1736608255132,-1818837.61588399,0.000123,4]
[348536876,1736608255388,-289.1629072,0.000123,4]
[348536877,1736608255399,-426.66,0.000123,4]
[348536878,1736608256335,-256.0826344,9.885e-05,2]
[348536879,1736608256346,-500.0,0.00010433,2]
[348536880,1736608256355,-335.9173656,0.00010707,2]
[348536881,1736608256376,-1630.5626344,0.00010707,2]
[348536882,1736608256387,-1333.49,0.00010707,2]
[348536883,1736608256399,-344.10681322,0.00010707,2]
[348536884,1736608256412,-155.89318678,0.00010707,2]
[348536885,1736608256423,-500.0,0.00010707,2]
[348536886,1736608256434,-1966.48,0.00010981,2]
[348536887,1736608256444,-258.15947699,0.00010981,2]
[348536888,1736608256557,-781.27465,0.00010981,2]
[348536889,1736608256569,-294.05587301,0.00010981,2]
[348536890,1736608256579,-500.0,0.00010981,2]
[348536891,1736608256588,-500.0,0.00010986,2]
[348536892,1736608256598,-610.88,0.00011255,2]
[348536893,1736608256610,-1966.48,0.00011255,2]
[348536894,1736608256620,-1333.49,0.00011255,2]
[348536895,1736608256630,-500.0,0.00011255,2]
[348536896,1736608256640,-610.88,0.00011529,2]
[348536897,1736608256650,-1966.48,0.00011529,2]
[348536898,1736608256660,-1333.49,0.00011529,2]
[348536899,1736608256670,-500.0,0.00011529,2]
[348536900,1736608256680,-610.88,0.00011803,2]
[348536901,1736608256690,-1966.48,0.00011803,2]
[348536902,1736608256700,-1333.49,0.00011803,2]
[348536903,1736608256710,-500.0,0.00011803,2]
[348536904,1736608256720,-610.88,0.00012077,2]
[348536905,1736608256730,-1966.48,0.00012077,2]
[348536906,1736608256739,-1333.49,0.00012077,2]
[348536907,1736608256749,-500.0,0.00012077,2]
[348536908,1736608256759,-500.0,0.00012179,2]
[348536909,1736608256769,-500.0,0.00012179,2]
[348536910,1736608256780,-503.81658871,0.00012179,2]
[348536911,1736608256790,-500.0,0.00012179,2]
[348536912,1736608256800,-528.48766982,0.00012179,2]
[348536913,1736608256810,-532.2596745,0.00012179,2]
[348536914,1736608256820,-502.75653172,0.00012179,2]
[348536915,1736608256830,-360.24493975,0.000122,2]
[348536916,1736608256840,-756042.74337628,0.000123,4]
[348536917,1736608257046,-2030.22397411,0.000123,4]
[348536919,1736608786422,498.2,8.219e-05,2]
[348536920,1736609154736,2024.9631996,6.94e-05,2]
[348536921,1736609328158,1665.07910992,0.0002,120]
[348536922,1736609356238,-250.0,9.436e-05,2]
[348536923,1736609356498,-245.81,9.47e-05,2]
[348536924,1736609356521,-1943.1184,9.785e-05,2]
[348536925,1736609356544,-757.2508,9.785e-05,2]
[348536926,1736609356567,-265.5776,9.787e-05,2]
[348536927,1736609356590,-423.07,9.813e-05,2]
[348536928,1736609356613,-500.0,9.885e-05,2]
[348536929,1736609356635,-562.54,9.885e-05,2]
[348536930,1736609356657,-500.0,9.885e-05,2]
[348536931,1736609356678,-500.0,9.885e-05,2]
[348536932,1736609356699,-500.0,9.885e-05,2]
[348536933,1736609356721,-500.0,9.885e-05,2]
[348536934,1736609356743,-161.77918582,9.885e-05,2]
[348536935,1736609360598,-338.22081418,9.885e-05,2]
[348536936,1736609360620,-500.0,9.885e-05,2]
[348536937,1736609360645,-500.0,9.885e-05,2]
[348536938,1736609360668,-500.0,9.885e-05,2]
[348536939,1736609360691,-500.0,9.885e-05,2]
[348536940,1736609360713,-500.0,9.885e-05,2]
[348536941,1736609360735,-500.0,9.885e-05,2]
[348536942,1736609360758,-500.0,9.885e-05,2]
[348536943,1736609360780,-431.4,9.885e-05,2]
[348536944,1736609360803,-500.0,9.885e-05,2]
[348536945,1736609360825,-500.0,9.885e-05,2]
[348536946,1736609360848,-500.0,9.885e-05,2]
[348536947,1736609360870,-500.0,9.885e-05,2]
[348536948,1736609360896,-500.0,9.885e-05,2]
[348536949,1736609360918,-500.0,9.885e-05,2]
[348536950,1736609360941,-500.0,9.885e-05,2]
[348536951,1736609360963,-500.0,9.885e-05,2]
[348536952,1736609360985,-500.0,9.885e-05,2]
[348536953,1736609361007,-500.0,9.885e-05,2]
[348536954,1736609361034,-301.41,9.885e-05,2]
[348536955,1736609361058,-428.96918582,9.885e-05,2]
[348536958,1736609364943,-71.03081418,9.885e-05,2]
[348536959,1736609364965,-500.0,9.885e-05,2]
[348536960,1736609364986,-500.0,9.885e-05,2]
[348536961,1736609365009,-500.0,9.885e-05,2]
[348536962,1736609365034,-500.0,9.885e-05,2]
[348536963,1736609365058,-500.0,9.885e-05,2]
[348536964,1736609365084,-500.0,9.885e-05,2]
[348536965,1736609365107,-500.0,9.885e-05,2]
[348536966,1736609365130,-189.17311381,9.885e-05,2]
[348536967,1736609365152,-500.0,9.885e-05,2]
[348536968,1736609365173,-500.0,9.885e-05,2]
[348536969,1736609365194,-500.0,9.885e-05,2]
[348536970,1736609365215,-500.0,9.885e-05,2]
[348536971,1736609365238,-500.0,9.885e-05,2]
[348536972,1736609365259,-500.0,9.885e-05,2]
[348536973,1736609365281,-500.0,9.885e-05,2]
[348536974,1736609365304,-500.0,9.885e-05,2]
[348536975,1736609365327,-842.12,9.885e-05,2]
[348536976,1736609365349,-291.32,9.885e-05,2]
[348536977,1736609365371,-613.21,9.885e-05,2]
[348536978,1736609365392,-493.14607201,9.885e-05,2]
[348536979,1736609369546,-6.85392799,9.885e-05,2]
[348536980,1736609369570,-500.0,9.885e-05,2]
[348536981,1736609369593,-500.0,9.885e-05,2]
[348536982,1736609369620,-500.0,9.885e-05,2]
[348536983,1736609369644,-500.0,9.885e-05,2]
[348536984,1736609369667,-500.0,9.885e-05,2]
[348536985,1736609369691,-500.0,9.885e-05,2]
[348536986,1736609369712,-500.0,9.885e-05,2]
[348536987,1736609369734,-500.0,9.885e-05,2]
[348536988,1736609369757,-2121.7,9.885e-05,2]
[348536989,1736609369779,-500.0,9.885e-05,2]
[348536990,1736609369803,-500.0,9.885e-05,2]
[348536991,1736609369825,-500.0,9.885e-05,2]
[348536992,1736609369847,-500.0,9.885e-05,2]
[348536993,1736609369869,-500.0,9.885e-05,2]
[348536994,1736609369896,-500.0,9.885e-05,2]
[348536995,1736609369919,-500.0,9.885e-05,2]
[348536996,1736609369942,-371.44607201,9.885e-05,2]
[348536997,1736609373311,-128.55392799,9.885e-05,2]
[348536998,1736609373334,-500.0,9.885e-05,2]
[348536999,1736609373359,-500.0,9.885e-05,2]
[348537000,1736609373382,-500.0,9.885e-05,2]
[348537001,1736609373405,-500.0,9.885e-05,2]
[348537002,1736609373428,-500.0,9.885e-05,2]
[348537003,1736609373451,-500.0,9.885e-05,2]
[348537004,1736609373472,-500.0,9.885e-05,2]
[348537005,1736609373495,-500.0,9.885e-05,2]
[348537006,1736609373518,-500.0,9.885e-05,2]
[348537007,1736609373540,-500.0,9.885e-05,2]
[348537008,1736609373565,-500.0,9.885e-05,2]
[348537009,1736609373587,-500.0,9.885e-05,2]
[348537010,1736609373608,-500.0,9.885e-05,2]
[348537011,1736609373631,-626.06,9.885e-05,2]
[348537012,1736609373653,-500.0,9.885e-05,2]
[348537013,1736609373675,-917.95,9.885e-05,2]
[348537014,1736609373698,-500.0,9.885e-05,2]
[348537015,1736609373721,-827.43607201,9.885e-05,2]
[348537016,1736609377774,-325.03392799,9.885e-05,2]
[348537017,1736609377798,-1456.88,9.885e-05,2]
[348537018,1736609377824,-2029.75,9.885e-05,2]
[348537019,1736609377847,-564.35,9.885e-05,2]
[348537020,1736609377872,-815.6,9.885e-05,2]
[348537021,1736609377895,-500.0,9.887e-05,2]
[348537022,1736609377917,-502.30985891,9.887e-05,2]
[348537023,1736609377939,-500.0,9.887e-05,2]
[348537024,1736609377960,-502.49831916,9.887e-05,2]
[348537025,1736609377983,-501.61670896,9.887e-05,2]
[348537026,1736609378004,-500.0,9.887e-05,2]
[348537027,1736609378027,-500.0,9.887e-05,2]